bitfinex/quotes_SOLUSD_20250915
["timestamp","ask_amount","ask_price","bid_price","bid_amount"]
[1757948980818,7.08255206,233.69,233.68,5.0193489]
[1757948981022,7.08255206,233.7,233.68,5.0193489]
[1757948981524,132.5,233.72,233.69,0.68]
[1757948981833,7.08255206,233.7,233.68,0.06]
[1757948982004,7.08255206,233.69,233.68,0.06]
[1757948982207,7.80255206,233.69,233.68,0.06]
[1757948982600,7.08255206,233.69,233.68,0.06]
[1757948983129,7.80255206,233.69,233.68,0.06]
[1757948984235,33.80255206,233.69,233.68,0.06]
[1757948985543,38.08172532,233.69,233.68,0.06]
[1757948985838,34.08217113,233.69,233.68,0.06]
[1757948986426,29.80299787,233.69,233.68,0.06]
[1757948987525,26.0,233.69,233.68,0.06]
[1757948987843,29.80299787,233.69,233.68,0.06]
[1757948988015,29.08299787,233.69,233.68,0.06]
[1757948990838,3.08299787,233.69,233.68,0.74]
[1757948991021,3.08299787,233.71,233.68,0.74]
[1757948991524,3.08299787,233.71,233.68,5.01935638]
[1757948991926,158.53,233.72,233.68,5.01935638]
[1757948991927,3.08299787,233.7,233.68,0.74]
[1757948992643,26.0,233.7,233.69,0.68]
[1757948992824,135.61299787,233.72,233.69,0.68]
[1757948993022,135.61299787,233.72,233.68,4.33935446]
[1757948993023,135.61299787,233.72,233.7,0.68]
[1757948993224,132.53,233.72,233.7,0.67]
[1757948993752,132.53,233.72,233.71,0.67]
[1757948993929,132.53,233.72,233.71,4.94880706]
[1757948994133,132.53,233.72,233.69,0.67]
[1757948994432,132.53,233.72,233.69,4.94916142]
[1757948994631,3.08299787,233.71,233.69,0.67]
[1757948995151,132.53,233.72,233.7,0.67]
[1757948995525,132.53,233.72,233.69,4.27915818]
[1757948995757,135.61299787,233.72,233.69,4.94915818]
[1757948995928,132.53,233.72,233.69,4.94915818]
[1757948996251,135.61299787,233.72,233.69,4.94915818]
[1757948996423,132.53,233.72,233.69,4.94915818]
[1757948996627,3.08299787,233.71,233.68,4.33932231]
[1757948996832,3.08299787,233.71,233.68,5.00932231]
[1757948997039,3.08299787,233.71,233.68,4.33932231]
[1757948997243,135.61299787,233.72,233.69,0.67]
[1757948997643,135.61299787,233.72,233.68,4.33932231]
[1757948998034,3.08299787,233.71,233.68,4.33932231]
[1757948998347,135.61299787,233.72,233.69,0.67]
[1757948998557,132.53,233.72,233.7,4.94892861]
[1757948998736,132.53,233.72,233.71,0.67]
[1757948999051,132.53,233.72,233.7,4.27892861]
[1757948999230,26.0,233.69,233.68,0.06]
[1757948999435,29.08299787,233.69,233.68,0.06]
[1757948999648,29.77299787,233.69,233.68,0.06]
[1757949001547,34.05217113,233.69,233.68,0.06]
[1757949001743,36.87928286,233.69,233.68,0.06]
[1757949002545,47.57721601,233.69,233.62,0.06]
[1757949002731,26.0,233.65,233.62,0.78]
[1757949003147,26.0,233.68,233.63,0.72]
[1757949003458,26.0,233.68,233.64,0.72]
[1757949003755,29.08299787,233.68,233.65,0.72]
[1757949003958,3.08299787,233.69,233.66,0.72]
[1757949004140,3.08299787,233.7,233.67,0.72]
[1757949004326,3.08299787,233.7,233.68,0.72]
[1757949004723,3.08299787,233.7,233.64,3.08299787]
[1757949004924,3.08299787,233.66,233.62,0.78]
[1757949005328,3.08299787,233.65,233.63,0.72]
[1757949005742,7.08686939,233.66,233.63,0.72]
[1757949005949,26.7,233.69,233.64,0.72]
[1757949006150,7.08686939,233.66,233.62,4.34034563]
[1757949006453,7.08686939,233.66,233.63,0.72]
[1757949007155,26.0,233.67,233.62,0.06]
[1757949007333,7.08686939,233.64,233.62,0.06]
[1757949007535,7.08686939,233.63,233.62,0.06]
[1757949007751,0.7,233.66,233.62,0.06]
[1757949007955,4.79539127,233.63,233.62,0.06]
[1757949008254,26.0,233.67,233.62,0.78]
[1757949008552,30.79539127,233.67,233.63,0.72]
[1757949008734,4.79539127,233.67,233.64,0.72]
[1757949008931,4.79539127,233.69,233.65,0.72]
[1757949009135,132.5,233.7,233.64,4.79539127]
[1757949009360,132.5,233.7,233.66,0.72]
[1757949009859,132.5,233.7,233.63,19.77634405]
[1757949010156,132.5,233.7,233.64,0.72]
[1757949010644,132.5,233.7,233.64,5.51539127]
[1757949011052,132.5,233.7,233.65,15.69967044]
[1757949011239,132.5,233.7,233.66,0.72]
[1757949011642,132.5,233.7,233.67,0.72]
[1757949011845,132.5,233.7,233.68,0.72]
[1757949012046,132.5,233.7,233.66,33.84]
[1757949012257,132.5,233.7,233.67,0.72]
[1757949012447,132.5,233.7,233.66,33.84]
[1757949012648,4.79539127,233.68,233.65,4.27990584]
[1757949012852,4.79539127,233.68,233.65,38.11990584]
[1757949013256,133.2,233.7,233.66,0.72]
[1757949013257,137.29539127,233.7,233.66,0.72]
[1757949013566,132.5,233.7,233.66,0.72]
[1757949013760,132.5,233.7,233.67,0.72]
[1757949014360,4.79539127,233.69,233.65,33.84]
[1757949015064,4.79539127,233.69,233.65,38.11990287]
[1757949015442,4.79539127,233.68,233.64,33.84]
[1757949015665,4.79539127,233.66,233.62,0.06]
[1757949015969,4.79539127,233.64,233.62,0.06]
[1757949016347,0.7,233.64,233.62,0.06]
[1757949016547,4.79539127,233.63,233.62,0.06]
[1757949016747,5.49539127,233.63,233.62,0.06]
[1757949017054,31.49539127,233.63,233.62,0.06]
[1757949019144,30.79539127,233.63,233.62,0.06]
[1757949019954,26.0,233.63,233.62,0.06]
[1757949020159,30.79539127,233.63,233.62,0.06]
[1757949020878,31.49539127,233.63,233.62,0.06]
[1757949021371,35.77566349,233.63,233.62,0.06]
[1757949021662,5.49539127,233.63,233.62,0.06]
[1757949022851,31.49539127,233.63,233.62,0.06]
[1757949023966,35.77566349,233.63,233.62,0.06]
[1757949025665,31.49539127,233.63,233.62,0.06]
[1757949026354,4.79539127,233.63,233.62,0.06]
[1757949026562,30.79539127,233.63,233.62,0.06]
[1757949026753,26.0,233.63,233.62,0.06]
[1757949026948,30.79539127,233.63,233.62,0.06]
[1757949027859,1.973245,233.63,233.62,0.06]
[1757949028368,1.973245,233.63,233.62,0.78]
[1757949029957,1.973245,233.63,233.62,5.06045544]
[1757949031269,1.973245,233.64,233.62,5.06045544]
[1757949031470,26.0,233.67,233.63,0.72]
[1757949031671,1.973245,233.64,233.63,0.72]
[1757949032951,1.973245,233.64,233.62,0.06]
[1757949033150,26.0,233.67,233.62,0.06]
[1757949033373,1.973245,233.63,233.62,0.06]
[1757949037658,26.0,233.65,233.62,0.06]
[1757949037861,1.973245,233.63,233.62,0.06]
[1757949038875,26.0,233.65,233.62,0.06]
[1757949039061,1.973245,233.63,233.62,0.77]
[1757949039565,26.0,233.65,233.62,0.77]
[1757949039769,1.973245,233.64,233.62,5.05039017]
[1757949039973,1.973245,233.63,233.62,0.06]
[1757949042475,1.973245,233.63,233.62,0.77]
[1757949042867,1.973245,233.63,233.62,0.06]
[1757949045492,134.473245,233.63,233.62,0.06]
[1757949047987,134.473245,233.63,233.62,0.77]
[1757949048191,132.5,233.63,233.62,0.77]
[1757949048795,134.473245,233.63,233.62,0.77]
[1757949048991,134.473245,233.63,233.62,5.05045544]
[1757949048992,132.5,233.63,233.62,5.05045544]
[1757949051190,0.03,233.68,233.63,13.59559401]
[1757949051370,0.03,233.68,233.65,13.59559401]
[1757949051771,0.03,233.68,233.67,4.27953952]
[1757949051989,0.03,233.68,233.66,0.71]
[1757949052182,0.03,233.68,233.67,0.71]
[1757949053071,0.03,233.68,233.66,4.27965809]
[1757949053272,2.003245,233.68,233.65,13.59559401]
[1757949053471,2.003245,233.68,233.65,14.30559401]
[1757949053772,2.003245,233.68,233.66,0.71]
[1757949053975,2.003245,233.68,233.65,13.59559401]
[1757949054165,2.003245,233.68,233.65,18.58548228]
[1757949054595,2.003245,233.68,233.66,0.71]
[1757949054798,0.03,233.68,233.67,0.71]
[1757949055471,0.03,233.68,233.67,14.30559401]
[1757949056592,0.03,233.68,233.67,20.98633248]
[1757949058799,0.03,233.68,233.67,54.80633248]
[1757949061168,0.03,233.68,233.67,52.83308748]
[1757949061401,0.03,233.68,233.67,54.80633248]
[1757949064105,0.03,233.68,233.67,19.01308748]
[1757949064319,0.03,233.68,233.67,54.35837853]
[1757949064896,0.03,233.68,233.67,54.78633248]
[1757949066618,0.03,233.73,233.7,39.59559401]
[1757949066797,0.03,233.73,233.72,13.59559401]
[1757949067000,0.03,233.73,233.72,49.36883901]
[1757949067315,0.03,233.73,233.72,48.06559401]
[1757949067520,0.03,233.73,233.72,50.03883901]
[1757949067708,0.03,233.73,233.72,52.344218]
[1757949068028,0.03,233.73,233.72,54.317463]
[1757949068216,0.03,233.73,233.72,18.544218]
[1757949068521,0.03,233.73,233.72,53.647463]
[1757949068820,0.03,233.73,233.72,54.317463]
[1757949069898,0.03,233.73,233.72,55.42260235]
[1757949070610,0.03,233.73,233.72,51.674218]
[1757949070812,0.75,233.73,233.72,4.27862399]
[1757949071001,3.82838435,233.73,233.68,13.59559401]
[1757949071207,3.07838435,233.7,233.69,33.8]
[1757949071402,3.79838435,233.7,233.68,4.27935638]
[1757949071614,3.79838435,233.69,233.63,4.28027222]
[1757949071913,3.07838435,233.67,233.65,13.59559401]
[1757949072117,0.03,233.73,233.66,33.8]
[1757949072118,0.72,233.71,233.66,33.8]
[1757949072309,0.72,233.7,233.66,33.8]
[1757949072496,0.72,233.69,233.65,13.59559401]
[1757949072692,3.79838435,233.69,233.67,33.84]
[1757949073096,26.03,233.73,233.67,33.84]
[1757949073097,3.07838435,233.71,233.67,34.51]
[1757949073298,26.75,233.73,233.68,13.59559401]
[1757949073499,3.79838435,233.72,233.68,13.59559401]
[1757949073698,3.10838435,233.73,233.69,4.27917326]
[1757949073923,3.82838435,233.73,233.7,33.78]
[1757949074513,3.10838435,233.73,233.7,33.78]
[1757949074701,0.72,233.72,233.7,33.78]
[1757949074902,3.10838435,233.73,233.7,33.78]
[1757949075116,3.82838435,233.73,233.7,33.78]
[1757949075322,0.03,233.73,233.7,33.78]
[1757949075519,0.75,233.73,233.7,33.78]
[1757949075707,3.82838435,233.73,233.7,38.05898977]
[1757949076731,3.82838435,233.73,233.7,33.78]
[1757949077228,0.03,233.73,233.7,38.72896877]
[1757949078122,132.53,233.73,233.7,38.72896877]
[1757949078301,132.53,233.73,233.71,0.67]
[1757949078499,132.53,233.73,233.72,13.59559401]
[1757949078912,132.53,233.73,233.72,47.37559401]
[1757949080132,136.32838435,233.73,233.71,33.78]
[1757949080306,3.07838435,233.72,233.71,33.78]
[1757949080502,3.79838435,233.72,233.71,33.78]
[1757949082528,3.07838435,233.72,233.71,33.78]
[1757949084035,3.79838435,233.72,233.71,33.78]
[1757949084633,3.07838435,233.72,233.71,33.78]
[1757949084834,132.53,233.73,233.71,38.72877232]
[1757949085136,3.07838435,233.72,233.71,38.72877232]
[1757949085820,135.60838435,233.73,233.71,38.72877232]
[1757949086217,135.60838435,233.73,233.72,0.67]
[1757949086409,132.53,233.73,233.72,14.26559401]
[1757949086618,132.53,233.73,233.72,18.544218]
[1757949088454,0.03,233.73,233.72,18.544218]
[1757949091737,0.03,233.73,233.72,51.634218]
[1757949092124,0.03,233.73,233.72,17.874218]
[1757949092324,0.03,233.73,233.72,51.634218]
[1757949093138,3.10838435,233.73,233.72,51.634218]
[1757949093636,0.03,233.73,233.72,51.634218]
[1757949094641,0.03,233.73,233.72,52.354218]
[1757949094937,0.03,233.73,233.72,55.43260235]
[1757949095919,0.03,233.73,233.72,52.354218]
[1757949099319,0.03,233.73,233.72,18.594218]
[1757949099519,0.03,233.73,233.72,52.354218]
[1757949101438,0.03,233.73,233.72,55.43260235]
[1757949101646,0.03,233.75,233.73,13.59559401]
[1757949101826,0.03,233.75,233.74,4.27825789]
[1757949102020,0.03,233.75,233.7,0.06]
[1757949102021,0.67,233.74,233.71,4.27880706]
[1757949102225,0.67,233.73,233.72,33.74]
[1757949102916,0.67,233.73,233.7,13.65559401]
[1757949103122,0.67,233.72,233.7,0.06]
[1757949103325,3.07838435,233.71,233.7,0.06]
[1757949103524,3.07838435,233.71,233.7,33.8]
[1757949103725,3.74838435,233.71,233.7,33.8]
[1757949105845,3.74838435,233.71,233.7,0.06]
[1757949106035,3.74838435,233.71,233.7,33.8]
[1757949106357,3.74838435,233.71,233.7,0.06]
[1757949106552,8.02719141,233.71,233.7,0.06]
[1757949106850,20.89251294,233.71,233.7,0.06]
[1757949107558,26.0,233.68,233.67,0.06]
[1757949107742,29.07838435,233.68,233.67,0.06]
[1757949108047,29.74838435,233.68,233.67,0.06]
[1757949108258,34.02774073,233.68,233.67,0.06]
[1757949108562,6.1567687,233.66,233.64,0.06]
[1757949108933,26.0,233.63,233.62,0.06]
[1757949109134,3.07838435,233.63,233.62,0.06]
[1757949109361,3.74838435,233.63,233.62,0.06]
[1757949110460,8.02865657,233.63,233.62,0.06]
[1757949110627,16.61922546,233.63,233.62,0.06]
[1757949111258,20.89949768,233.63,233.62,0.06]
[1757949112242,24.28847209,233.63,233.62,0.06]
[1757949112442,16.61922546,233.63,233.62,0.06]
[1757949113156,20.89949768,233.63,233.62,0.06]
[1757949113340,153.39949768,233.63,233.62,0.06]
[1757949113545,152.50510649,233.63,233.62,0.06]
[1757949116639,156.78537871,233.63,233.62,0.06]
[1757949117364,149.11922546,233.63,233.62,0.06]
[1757949117863,153.39949768,233.63,233.62,0.06]
[1757949118348,156.90219656,233.63,233.62,0.06]
[1757949119665,156.90219656,233.63,233.59,0.06]
[1757949119666,26.0,233.6,233.59,0.06]
[1757949119843,29.07838435,233.6,233.51,0.7]
[1757949120045,3.07838435,233.58,233.48,52.51558661]
[1757949120244,3.07838435,233.58,233.49,0.7]
[1757949120463,3.78838435,233.58,233.49,0.7]
[1757949120668,3.07838435,233.51,233.49,0.7]
[1757949120974,26.0,233.53,233.5,6.98258307]
[1757949121268,3.07838435,233.52,233.51,0.7]
[1757949122658,3.07838435,233.52,233.5,6.28258307]
[1757949122659,3.07838435,233.52,233.5,2.0]
[1757949122848,3.07838435,233.52,233.51,0.65]
[1757949123047,3.07838435,233.52,233.5,2.0]
[1757949123350,26.0,233.54,233.5,2.0]
[1757949123351,3.07838435,233.51,233.5,2.0]
[1757949123763,12.87470763,233.54,233.5,2.65]
[1757949123966,0.7,233.57,233.51,0.65]
[1757949124156,3.07838435,233.52,233.51,0.65]
[1757949124665,3.07838435,233.52,233.5,2.0]
[1757949124872,3.07838435,233.51,233.5,2.0]
[1757949126660,132.5,233.51,233.5,2.65]
[1757949127147,132.5,233.51,233.5,6.93265524]
[1757949127349,132.5,233.51,233.5,2.65]
[1757949127557,132.5,233.51,233.5,6.93265524]
[1757949127756,132.5,233.51,233.5,6.99265524]
[1757949128077,132.5,233.51,233.5,2.06]
[1757949128371,135.57838435,233.51,233.5,2.06]
[1757949128752,135.57838435,233.51,233.5,6.99265524]
[1757949128945,135.57838435,233.51,233.5,2.71]
[1757949129349,135.57838435,233.51,233.5,2.06]
[1757949129779,134.47524477,233.51,233.5,2.06]
[1757949131766,134.47524477,233.51,233.5,6.99265524]
[1757949132275,132.5,233.51,233.5,6.99265524]
[1757949132667,134.47524477,233.51,233.5,6.99265524]
[1757949134683,134.47524477,233.51,233.5,6.34265524]
[1757949135063,134.47524477,233.51,233.5,2.06]
[1757949135782,134.47524477,233.51,233.5,6.34265524]
[1757949136093,132.5,233.51,233.5,6.99265524]
[1757949136275,134.47524477,233.51,233.5,2.06]
[1757949136585,132.5,233.51,233.5,6.34265524]
[1757949136775,134.47524477,233.51,233.5,6.34265524]
[1757949136982,134.47524477,233.51,233.5,6.99265524]
[1757949138497,134.47524477,233.51,233.5,2.71]
[1757949138700,134.47524477,233.51,233.5,2.06]
[1757949138867,134.47524477,233.51,233.5,35.8]
[1757949139068,134.47524477,233.51,233.5,2.06]
[1757949139268,134.47524477,233.51,233.5,35.8]
[1757949140611,135.17524477,233.51,233.5,35.8]
[1757949140787,134.47524477,233.51,233.5,35.8]
[1757949143064,134.47524477,233.51,233.5,2.06]
[1757949143289,135.17524477,233.51,233.5,35.78]
[1757949144170,134.47524477,233.51,233.5,35.78]
[1757949144669,135.17524477,233.51,233.5,2.06]
[1757949144888,26.0,233.48,233.45,0.06]
[1757949145086,26.0,233.44,233.37,25.39]
[1757949145287,26.0,233.44,233.38,0.28]
[1757949145288,1.97524477,233.4,233.38,0.28]
[1757949146181,4.88575841,233.39,233.35,33.72]
[1757949146383,27.97524477,233.36,233.26,0.1]
[1757949146588,1.97524477,233.29,233.27,38.65687786]
[1757949146770,1.97524477,233.29,233.28,0.65]
[1757949147092,1.97524477,233.3,233.28,0.65]
[1757949147303,12.88521422,233.33,233.29,34.37]
[1757949147507,1.97524477,233.41,233.33,13.59559401]
[1757949147796,12.88134137,233.41,233.35,15.57083878]
[1757949148002,26.0,233.44,233.37,13.59559401]
[1757949148303,1.97524477,233.45,233.39,13.59559401]
[1757949148604,1.97524477,233.45,233.4,0.65]
[1757949148778,1.97524477,233.45,233.41,4.93430658]
[1757949148967,1.97524477,233.45,233.42,34.37]
[1757949149175,1.97524477,233.48,233.43,0.65]
[1757949149399,26.0,233.46,233.43,0.65]
[1757949149574,26.0,233.46,233.44,0.65]
[1757949149893,1.97524477,233.48,233.42,34.37]
[1757949150096,27.97524477,233.46,233.42,34.37]
[1757949150606,12.87747086,233.49,233.43,0.65]
[1757949150777,1.97524477,233.5,233.44,4.28375599]
[1757949151094,1.97524477,233.5,233.45,0.65]
[1757949151394,1.97524477,233.49,233.46,34.37]
[1757949151772,1.97524477,233.49,233.46,33.72]
[1757949151976,1.97524477,233.49,233.47,0.71]
[1757949152575,1.97524477,233.49,233.46,33.72]
[1757949153073,1.97524477,233.48,233.46,38.71335262]
[1757949153478,38.87636543,233.52,233.46,38.00335262]
[1757949153679,26.0,233.52,233.47,0.71]
[1757949153899,1.97524477,233.51,233.47,0.71]
[1757949154087,27.97524477,233.51,233.47,0.71]
[1757949154778,27.97524477,233.51,233.46,38.00335262]
[1757949154981,1.97524477,233.49,233.46,34.43]
[1757949155296,1.97524477,233.49,233.46,0.71]
[1757949155493,1.97524477,233.49,233.44,4.99375599]
[1757949155798,1.97524477,233.49,233.45,34.43]
[1757949156003,1.97524477,233.49,233.46,0.71]
[1757949156292,1.97524477,233.49,233.47,0.71]
[1757949156687,27.97524477,233.51,233.47,0.71]
[1757949157080,27.97524477,233.51,233.47,4.99302216]
[1757949157581,27.97524477,233.51,233.47,4.28302216]
[1757949157791,1.97524477,233.5,233.48,0.71]
[1757949157989,26.0,233.51,233.49,34.43]
[1757949158196,27.97524477,233.54,233.5,0.71]
[1757949158377,134.47524477,233.56,233.5,0.71]
[1757949158576,134.47524477,233.56,233.51,0.71]
[1757949158898,134.47524477,233.56,233.47,14.99103603]
[1757949158899,26.0,233.53,233.52,33.72]
[1757949160105,132.5,233.52,233.48,33.72]
[1757949160277,1.97524477,233.49,233.48,33.72]
[1757949160876,1.97524477,233.49,233.43,13.59559401]
[1757949161079,1.97524477,233.49,233.45,4.28357249]
[1757949161280,1.97524477,233.49,233.46,0.71]
[1757949161489,1.97524477,233.48,233.46,0.71]
[1757949162402,1.97524477,233.47,233.43,4.99377186]
[1757949162593,1.97524477,233.46,233.44,34.43]
[1757949162794,1.97524477,233.46,233.45,0.71]
[1757949163200,1.97524477,233.46,233.45,4.99357249]
[1757949163397,135.07524477,233.52,233.45,4.99357249]
[1757949163398,133.1,233.52,233.45,4.99357249]
[1757949163703,1.97524477,233.48,233.45,4.99357249]
[1757949163904,1.97524477,233.48,233.46,0.71]
[1757949164498,1.97524477,233.49,233.47,0.71]
[1757949164696,1.97524477,233.49,233.48,33.72]
[1757949164910,2.00524477,233.49,233.48,33.72]
[1757949165120,0.03,233.49,233.48,34.43]
[1757949165307,0.03,233.49,233.48,38.7130221]
[1757949168320,0.03,233.49,233.46,4.28326451]
[1757949168517,1.97524477,233.48,233.47,33.7]
[1757949169312,1.97524477,233.48,233.47,34.41]
[1757949169523,2.00524477,233.49,233.47,34.41]
[1757949169699,0.03,233.49,233.48,0.71]
[1757949170030,0.03,233.49,233.48,4.9930221]
[1757949170599,0.03,233.49,233.48,0.71]
[1757949170936,0.03,233.49,233.48,38.6930221]
[1757949172437,0.03,233.49,233.45,0.06]
[1757949172723,1.97524477,233.46,233.45,0.06]
[1757949173826,26.03,233.49,233.45,0.06]
[1757949174006,26.03,233.49,233.46,33.7]
[1757949174203,1.97524477,233.47,233.46,33.7]
[1757949175234,0.03,233.49,233.46,33.7]
[1757949175517,1.97524477,233.47,233.46,33.7]
[1757949175930,26.03,233.49,233.46,33.7]
[1757949176228,1.97524477,233.47,233.46,33.7]
[1757949176834,0.03,233.49,233.46,38.66338901]
[1757949177016,0.03,233.49,233.47,0.68]
[1757949177623,0.03,233.49,233.48,0.68]
[1757949178007,0.03,233.49,233.46,49.37186155]
[1757949178202,0.03,233.49,233.47,0.68]
[1757949178610,0.03,233.49,233.48,4.9630221]
[1757949179242,0.03,233.49,233.48,38.6630221]
[1757949179528,0.03,233.49,233.48,4.9630221]
[1757949179701,0.03,233.49,233.48,38.6630221]
[1757949180113,2.00524477,233.49,233.46,4.96324111]
[1757949180336,2.00524477,233.49,233.47,33.7]
[1757949180709,2.00524477,233.49,233.47,38.6631367]
[1757949181505,0.03,233.49,233.47,38.6631367]
[1757949181700,0.03,233.49,233.48,0.68]
[1757949181913,132.53,233.49,233.48,0.68]
[1757949183127,132.53,233.49,233.48,4.9630221]
[1757949183705,0.03,233.49,233.48,6.93826687]
[1757949184102,0.03,233.49,233.48,20.53386088]
[1757949184317,0.03,233.54,233.49,13.59559401]
[1757949184528,0.03,233.54,233.53,15.57083878]
[1757949184707,0.03,233.54,233.53,49.27083878]
[1757949184906,0.03,233.54,233.53,49.97083878]
[1757949185314,0.03,233.54,233.53,54.25294386]
[1757949185511,0.03,233.54,233.53,52.27769909]
[1757949185721,0.03,233.54,233.53,54.25294386]
[1757949186730,0.03,233.6,233.54,13.59559401]
[1757949186920,0.03,233.6,233.55,33.7]
[1757949187124,0.03,233.6,233.59,15.57083878]
[1757949187320,0.03,233.6,233.59,53.55184396]
[1757949187526,0.03,233.6,233.59,54.25184396]
[1757949188539,0.03,233.6,233.59,52.27659919]
[1757949189038,0.03,233.6,233.59,18.57659919]
[1757949189244,0.03,233.6,233.59,52.27659919]
[1757949189621,0.03,233.6,233.59,4.28100518]
[1757949189836,3.11320242,233.6,233.59,33.7]
[1757949190025,3.11320242,233.6,233.54,4.9817777]
[1757949190338,0.63,233.6,233.55,33.7]
[1757949190519,3.08320242,233.58,233.55,33.7]
[1757949190715,0.03,233.6,233.55,33.7]
[1757949190716,3.08320242,233.57,233.55,33.7]
[1757949190910,3.08320242,233.56,233.55,33.7]
[1757949191116,3.08320242,233.56,233.54,4.2817777]
[1757949191340,3.08320242,233.56,233.55,33.7]
[1757949191940,3.08320242,233.56,233.52,4.28212596]
[1757949191941,3.68320242,233.56,233.52,4.28212596]
[1757949192237,3.08320242,233.54,233.52,4.28212596]
[1757949192437,3.08320242,233.53,233.49,17.87843267]
[1757949192739,3.08320242,233.53,233.46,3.08320242]
[1757949192740,3.08320242,233.51,233.5,33.7]
[1757949193850,29.08320242,233.53,233.5,33.7]
[1757949194253,3.08320242,233.53,233.5,33.7]
[1757949195457,3.08320242,233.53,233.51,0.7]
[1757949195749,0.6,233.58,233.51,4.28232794]
[1757949196061,0.6,233.58,233.52,0.7]
[1757949196339,3.08320242,233.56,233.53,33.7]
[1757949196521,3.08320242,233.55,233.53,33.7]
[1757949196720,26.03,233.6,233.53,34.4]
[1757949196917,3.08320242,233.57,233.53,33.7]
[1757949197135,3.08320242,233.57,233.54,0.7]
[1757949197529,3.08320242,233.57,233.54,4.28188447]
[1757949197749,3.08320242,233.56,233.54,4.28188447]
[1757949198740,3.08320242,233.55,233.53,33.7]
[1757949198946,3.08320242,233.55,233.5,4.28265524]
[1757949199117,133.1,233.56,233.51,33.7]
[1757949199118,3.08320242,233.54,233.51,33.7]
[1757949199527,3.08320242,233.52,233.48,4.2830221]
[1757949199727,3.08320242,233.51,233.49,33.7]
[1757949199929,3.08320242,233.52,233.49,33.7]
[1757949200250,3.08320242,233.52,233.49,34.4]
[1757949200555,132.5,233.52,233.47,4.9831952]
[1757949200849,3.08320242,233.51,233.48,34.4]
[1757949201446,3.08320242,233.51,233.49,0.7]
[1757949201954,135.58320242,233.52,233.49,4.98273023]
[1757949202959,135.58320242,233.52,233.48,33.7]
[1757949203120,3.08320242,233.5,233.49,33.68]
[1757949203825,3.08320242,233.5,233.49,37.96283866]
[1757949204038,3.08320242,233.5,233.49,33.68]
[1757949204236,3.68320242,233.5,233.49,33.68]
[1757949205234,3.08320242,233.5,233.45,0.06]
[1757949205434,3.08320242,233.47,233.46,33.7]
[1757949205656,3.08320242,233.48,233.46,33.7]
[1757949205851,3.08320242,233.48,233.46,37.9833352]
[1757949206041,0.6,233.51,233.46,33.7]
[1757949206347,3.08320242,233.48,233.46,37.98338395]
[1757949206528,3.08320242,233.47,233.46,37.98338395]
[1757949206730,3.08320242,233.47,233.46,33.7]
[1757949207421,0.6,233.51,233.46,33.7]
[1757949207625,3.08320242,233.49,233.46,34.4]
[1757949207822,3.08320242,233.49,233.46,38.68329453]
[1757949208845,3.08320242,233.49,233.46,34.4]
[1757949209052,3.08320242,233.48,233.46,34.4]
[1757949209440,3.08320242,233.48,233.46,38.68333665]
[1757949209827,3.08320242,233.48,233.46,34.4]
[1757949210023,3.08320242,233.48,233.46,33.7]
[1757949210446,3.08320242,233.48,233.46,34.4]
[1757949211041,3.08320242,233.48,233.46,33.7]
[1757949211438,3.08320242,233.47,233.46,33.7]
[1757949212332,3.68320242,233.47,233.46,33.68]
[1757949213233,3.08320242,233.47,233.46,33.68]